bitfinex-derivatives/quotes_ETHF0:USTF0_20250929
["timestamp","ask_amount","ask_price","bid_price","bid_amount"]
[1759110118317,0.5235,4126.0,4125.9,5.09957986]
[1759110119317,0.5235,4126.0,4125.9,5.53562986]
[1759110119914,0.5235,4126.0,4125.9,4.65865]
[1759110120718,0.5235,4126.0,4125.9,4.41365]
[1759110121021,0.5235,4126.0,4125.9,4.65865]
[1759110122612,0.43854445,4126.4,4126.0,0.43603]
[1759110122915,0.21105445,4126.4,4126.3,1.63627986]
[1759110123116,0.91455283,4126.4,4126.3,1.63627986]
[1759110123315,1.66064283,4126.4,4126.3,1.63627986]
[1759110125010,0.00255445,4126.4,4126.3,2.31728986]
[1759110125217,0.00255445,4126.4,4126.3,3.18860685]
[1759110125412,0.72555445,4126.4,4126.3,3.18860685]
[1759110128521,0.00255445,4126.4,4126.3,3.18860685]
[1759110128825,0.00255445,4126.4,4126.3,1.88127986]
[1759110133521,0.5256,4127.2,4126.9,0.3258]
[1759110133819,0.4247,4127.2,4127.1,0.2152]
[1759110134122,1.2328469,4127.2,4127.1,0.2152]
[1759110134525,1.23467593,4127.2,4127.1,0.2152]
[1759110137031,0.5597,4127.0,4126.9,1.09217986]
[1759110137233,1.3678469,4127.0,4126.9,1.09217986]
[1759110137936,1.3678469,4127.0,4126.9,1.41797986]
[1759110139928,1.3678469,4127.0,4126.9,1.62597986]
[1759110140535,1.3678469,4127.0,4126.9,2.06191986]
[1759110140742,1.3678469,4127.0,4126.9,1.62597986]
[1759110141241,1.3678469,4127.0,4126.9,2.06191986]
[1759110142941,0.8686,4127.0,4126.9,2.06191986]
[1759110143739,0.8686,4127.0,4126.9,1.62597986]
[1759110144448,0.8686,4127.0,4126.9,2.06191986]
[1759110144840,0.8686,4127.0,4126.9,1.62597986]
[1759110146741,1.30453,4127.0,4126.9,1.62597986]
[1759110147540,0.739,4126.6,4126.5,5.71082541]
[1759110147840,0.739,4126.6,4126.5,6.83280527]
[1759110148237,0.739,4126.6,4126.5,5.95582541]
[1759110148635,0.739,4126.6,4126.5,5.51984541]
[1759110149543,0.739,4126.6,4126.5,5.27484541]
[1759110149739,0.739,4126.6,4126.5,5.51984541]
[1759110150741,0.5128,4126.6,4126.5,5.95583541]
[1759110150943,0.5128,4126.9,4126.5,5.89826823]
[1759110151236,0.2048,4126.9,4126.8,0.7601]
[1759110151440,0.2048,4126.9,4126.8,1.0051]
[1759110151644,0.5128,4126.9,4126.8,1.0051]
[1759110154240,0.308,4126.9,4126.8,1.0051]
[1759110154544,0.00182903,4127.2,4126.8,1.0051]
[1759110154545,0.308,4127.0,4126.9,0.7601]
[1759110154845,1.01179591,4127.0,4126.9,0.7601]
[1759110161342,1.23799591,4127.0,4126.9,1.19605]
[1759110162048,0.49899591,4127.0,4126.9,1.19605]
[1759110162248,0.30982903,4127.2,4127.1,1.19603]
[1759110162444,0.51462903,4127.2,4127.1,2.45555282]
[1759110162646,0.00182903,4127.2,4127.1,2.45555282]
[1759110164654,0.00182903,4127.2,4127.1,3.7622195]
[1759110164855,0.51462903,4127.2,4127.1,3.3262895]
[1759110165458,0.30982903,4127.2,4127.1,3.3262895]
[1759110166558,0.00182903,4127.2,4127.1,3.3262895]
[1759110167265,0.00182903,4127.2,4127.1,2.01962282]
[1759110167851,0.308,4127.7,4127.6,0.43587]
[1759110168052,0.5128,4127.7,4127.6,2.01962282]
[1759110168259,0.739,4127.7,4127.6,1.0051]
[1759110168950,0.74154961,4127.7,4127.6,0.24742944]
[1759110170757,0.74154961,4127.7,4127.6,0.45632944]
[1759110171062,0.74154961,4127.7,4127.6,0.79392944]
[1759110172858,0.74154961,4127.7,4127.6,0.45632944]
[1759110173856,0.74154961,4127.7,4127.6,1.00472944]
[1759110174460,0.74154961,4127.7,4127.6,0.66992944]
[1759110176652,0.74154961,4127.7,4127.6,0.00242944]
[1759110176854,1.24013325,4127.7,4127.6,0.00242944]
[1759110177955,1.48513325,4127.7,4127.6,0.00242944]
[1759110181766,0.87735,4126.9,4126.7,1.30607071]
[1759110182063,0.5571,4126.7,4126.6,0.7799]
[1759110182264,0.7756,4126.7,4126.6,0.7799]
[1759110182763,0.7756,4126.7,4126.6,0.78295924]
[1759110186666,0.7756,4126.7,4126.6,0.44815924]
[1759110187369,0.7756,4126.7,4126.6,0.78295924]
[1759110190567,0.7756,4126.7,4126.6,1.02795924]
[1759110191470,0.7756,4126.7,4126.6,1.46393924]
[1759110192973,0.7756,4126.7,4126.6,1.02795924]
[1759110193265,0.7756,4126.7,4126.6,0.69315924]
[1759110193571,1.21157,4126.7,4126.6,0.46735924]
[1759110193966,1.21157,4126.7,4126.6,0.00305924]
[1759110194169,2.72391503,4126.7,4126.6,0.00305924]
[1759110196065,1.70939221,4126.7,4126.6,0.00305924]
[1759110196265,1.21157,4126.7,4126.6,0.00305924]
[1759110196663,0.7756,4126.7,4126.6,0.78985924]
[1759110196867,0.5571,4126.7,4126.6,0.78985924]
[1759110197077,0.3449,4127.0,4126.9,0.4479]
[1759110197374,0.6678,4127.0,4126.9,1.22275]
[1759110197768,0.8856,4127.0,4126.9,1.22275]
[1759110198176,0.8856,4127.0,4126.9,0.4479]
[1759110199079,0.8856,4127.0,4126.9,0.2253]
[1759110199676,0.4364,4126.8,4126.7,0.66127]
[1759110199883,0.7593,4126.8,4126.7,0.66127]
[1759110200068,0.7593,4126.8,4126.7,0.2253]
[1759110200271,1.19527,4126.7,4126.6,0.00305924]
[1759110202482,4.90087053,4126.7,4126.6,0.00305924]
[1759110202781,5.14587053,4126.7,4126.6,0.00305924]
[1759110202975,0.2186,4125.9,4125.8,3.2078]
[1759110203176,0.7593,4125.9,4125.8,3.2078]
[1759110203479,1.19541,4125.4,4125.3,3.2078]
[1759110204074,1.19541,4125.4,4125.3,3.20987639]
[1759110204779,0.7593,4125.4,4125.3,3.96427639]
[1759110210288,0.7593,4125.4,4125.3,4.84160204]
[1759110212786,0.5415,4125.4,4125.3,4.84160204]
[1759110213386,0.3205,4125.7,4125.3,4.52190204]
[1759110213586,0.1238,4126.0,4125.3,4.52190204]
[1759110213587,0.75655,4126.0,4125.8,0.4347]
[1759110213787,0.75655,4126.0,4125.9,1.63172565]
[1759110213987,0.96395,4126.0,4125.9,1.63172565]
[1759110214889,0.5279,4126.0,4125.9,1.63172565]
[1759110215087,0.7403,4126.0,4125.9,1.63172565]
[1759110215290,0.8655,4126.0,4125.9,1.63172565]
[1759110216190,0.3205,4126.0,4125.9,1.63172565]
[1759110216386,3.2078,4126.2,4126.1,0.7544]
[1759110216596,0.5279,4126.6,4126.5,0.7544]
[1759110216891,3.2078,4126.7,4126.6,0.7544]
[1759110218292,3.5283,4126.7,4126.6,0.7544]
[1759110219286,3.7357,4126.7,4126.6,0.7544]
[1759110219592,0.7403,4126.7,4126.6,0.7544]
[1759110219793,0.7403,4126.7,4126.6,0.4347]
[1759110220492,0.7403,4126.7,4126.5,0.87732565]
[1759110220699,0.4198,4126.7,4126.6,0.245]
[1759110221196,0.7403,4126.7,4126.6,0.245]
[1759110221894,0.7403,4126.7,4126.3,3.2078]
[1759110222091,0.4198,4126.4,4126.3,3.2078]
[1759110222293,0.3376,4126.0,4125.9,1.41392565]
[1759110222490,0.8655,4126.0,4125.9,1.87672565]
[1759110223796,0.3205,4126.0,4125.9,1.87672565]
[1759110223998,0.3205,4126.0,4125.9,1.63172565]
[1759110224198,0.3205,4126.0,4125.9,1.87672565]
[1759110224499,0.3702,4127.0,4126.6,0.4347]
[1759110224500,0.4198,4126.7,4126.6,0.4347]
[1759110224689,0.4198,4126.7,4126.6,1.63172565]
[1759110225202,0.5279,4126.7,4126.6,1.63172565]
[1759110225597,0.1252,4127.0,4126.6,1.63172565]
[1759110225800,0.5279,4126.9,4126.8,0.7544]
[1759110226194,0.7403,4126.9,4126.8,0.7544]
[1759110227501,0.7403,4126.9,4126.8,0.4347]
[1759110227801,0.7403,4126.9,4126.4,0.2178]
[1759110227802,0.8655,4126.5,4126.4,0.2178]
[1759110228903,0.7403,4126.1,4126.0,1.31202565]
[1759110229200,0.7403,4126.1,4126.0,1.87672565]
[1759110229699,0.7403,4126.1,4126.0,0.9994]
[1759110229906,0.7403,4126.1,4126.0,1.87672565]
[1759110230304,0.7403,4126.1,4126.0,1.63172565]
[1759110230703,0.7403,4126.1,4126.0,1.87672565]
[1759110231395,0.5279,4126.1,4126.0,1.87672565]
[1759110238308,0.5279,4126.1,4126.0,1.63172565]
[1759110238502,0.5279,4126.1,4126.0,1.87672565]
[1759110242808,0.5612,4126.5,4126.1,0.43604]
[1759110242809,0.1252,4126.5,4126.1,0.43604]
[1759110243110,0.8696,4126.5,4126.4,0.7718]
[1759110243612,0.5365,4126.5,4126.4,0.7718]
[1759110243910,0.97249,4126.5,4126.4,0.7718]
[1759110244114,1.47133624,4126.5,4126.4,0.7718]
[1759110244414,1.03534624,4126.5,4126.4,0.7718]
[1759110244920,1.24324624,4126.5,4126.4,0.7718]
[1759110245211,1.37144624,4126.5,4126.4,0.7718]
[1759110248116,1.80743624,4126.5,4126.4,0.4352]
[1759110248316,0.851,4126.4,4126.3,0.245]
[1759110248613,1.67924624,4126.4,4126.3,0.245]
[1759110249209,1.24324624,4126.4,4126.3,0.245]
[1759110249718,1.67924624,4126.4,4126.3,0.245]
[1759110250125,1.24324624,4126.4,4126.3,0.245]
[1759110250309,0.3294,4126.3,4126.1,1.30607071]
[1759110250513,0.2071,4125.7,4125.6,1.30607071]
[1759110250710,0.3294,4125.6,4125.5,1.30607071]
[1759110250914,0.7444,4125.6,4125.5,2.07787071]
[1759110251314,0.7444,4125.6,4125.5,0.7718]
[1759110251509,0.1282,4126.0,4125.6,0.43609]
[1759110251711,3.9921,4126.2,4126.1,0.4352]
[1759110251916,4.71562638,4126.2,4126.1,1.63732565]
[1759110252221,4.71562638,4126.2,4126.1,1.31252565]
[1759110253015,5.15165638,4126.2,4125.8,1.31339565]
[1759110253220,0.4408,4125.9,4125.8,1.53409565]
[1759110253413,0.773,4125.9,4125.8,1.53409565]
[1759110253815,0.773,4125.9,4125.8,1.09802565]
[1759110254111,0.773,4125.9,4125.8,1.30552565]
[1759110254311,0.773,4125.9,4125.8,1.63032565]
[1759110256115,0.5485,4125.9,4125.8,1.63032565]
[1759110258919,0.5485,4125.9,4125.8,1.87532565]
[1759110259927,0.5485,4125.9,4125.8,1.63032565]
[1759110260317,0.773,4125.9,4125.8,1.63032565]
[1759110260517,0.9029,4125.5,4125.4,1.52677071]
[1759110260716,0.9029,4125.5,4125.4,3.18139636]
[1759110262321,0.5485,4125.5,4125.4,3.18139636]
[1759110262623,0.99277,4125.8,4125.7,0.4282]
[1759110262823,1.20907,4125.8,4125.7,1.63032565]
[1759110263821,1.20907,4125.8,4125.7,1.30552565]
[1759110265125,1.20907,4125.8,4125.7,1.61932565]
[1759110269120,1.20907,4125.8,4125.7,1.30552565]
[1759110269319,1.20907,4125.8,4125.3,3.20987639]
[1759110269320,0.43612,4125.4,4125.3,0.00207639]
[1759110269518,1.21122,4125.4,4125.3,0.00207639]
[1759110269821,1.21122,4125.4,4125.3,0.74117639]
[1759110270017,1.21122,4125.4,4125.3,0.87940204]
[1759110270529,1.21122,4125.4,4125.3,1.09690204]
[1759110271932,1.21122,4125.4,4125.3,0.87940204]
[1759110272229,1.21122,4125.4,4125.3,0.00207639]
[1759110285142,1.70810728,4125.4,4125.3,0.00207639]
[1759110289239,1.21122,4125.4,4125.3,0.00207639]
[1759110289544,1.70816029,4125.4,4125.3,0.00207639]
[1759110289744,1.70816029,4125.4,4125.3,0.21957639]
[1759110289948,1.27204029,4125.4,4125.3,0.21957639]
[1759110290139,0.7751,4125.4,4125.3,0.74117639]
[1759110293848,0.7751,4125.4,4125.3,1.17730639]
[1759110295447,1.27225589,4125.4,4125.3,1.17730639]
[1759110296243,1.27225589,4125.4,4125.3,0.86350639]
[1759110296842,1.27225589,4125.4,4125.3,1.17490639]
[1759110300451,1.70837589,4125.4,4125.3,0.73877639]
[1759110300750,1.70837589,4125.4,4125.3,0.21957639]
[1759110301753,1.70837589,4125.4,4125.0,1.30607071]
[1759110301754,0.312,4125.3,4125.0,1.30607071]
[1759110301944,0.1264,4124.5,4124.1,1.30607071]
[1759110302147,0.8567,4124.0,4123.9,0.7371]
[1759110302949,0.00246393,4124.0,4123.9,5.73910592]
[1759110304152,0.31446393,4124.0,4123.9,5.73910592]
[1759110304452,0.00246393,4124.0,4123.9,5.73910592]
[1759110304959,0.52186393,4124.0,4123.9,5.73910592]
[1759110305344,0.31446393,4124.0,4123.9,5.73910592]
[1759110306152,0.00246393,4124.0,4123.9,5.73910592]
[1759110307847,3.2078,4124.7,4124.6,1.75239648]
[1759110308248,3.5198,4124.7,4124.6,1.75239648]
[1759110308647,3.2078,4124.7,4124.6,1.75239648]
[1759110308845,3.21094475,4124.7,4124.6,1.75239648]
[1759110309252,3.52294475,4124.7,4124.6,1.75239648]
[1759110310657,3.94124475,4124.7,4124.6,1.44099648]
[1759110310950,3.94124475,4124.7,4124.3,0.3114]
[1759110310951,0.2074,4124.4,4124.3,0.3114]
[1759110311153,0.2074,4124.0,4123.9,0.73910592]
[1759110311363,0.8567,4124.0,4123.9,1.7544024]
[1759110311546,0.8567,4124.0,4123.9,1.6880024]
[1759110314551,0.8567,4124.0,4123.9,1.4808024]
[1759110314759,0.8567,4124.0,4123.9,0.00200592]
[1759110316654,0.312,4124.0,4123.9,1.7576024]
[1759110316956,0.5376,4124.0,4123.9,1.7576024]
[1759110317155,3.2078,4124.2,4124.1,0.7403]
[1759110317361,3.2078,4124.2,4124.1,2.00059648]
[1759110317854,3.962,4124.2,4124.1,2.00059648]
[1759110318060,3.962,4124.2,4124.1,1.68759648]
[1759110318562,0.1262,4124.5,4124.1,2.43684648]
[1759110318563,0.74992,4124.5,4124.1,2.43684648]
[1759110318759,0.97552,4124.5,4124.4,1.75559648]
[1759110318959,0.31684475,4124.7,4124.4,1.68759648]
[1759110319154,0.97864475,4124.7,4124.6,0.7403]
[1759110319663,0.54244475,4124.7,4124.6,0.7403]
[1759110321863,0.7542,4124.4,4124.3,0.7403]
[1759110322063,0.7542,4124.4,4124.3,2.00059648]
[1759110322459,0.5393,4124.4,4124.3,2.00059648]
[1759110325767,0.7542,4124.4,4124.3,2.00059648]
[1759110326965,0.7542,4124.4,4124.3,0.245]
[1759110327171,0.7542,4124.4,4124.3,0.4637]
[1759110327484,0.7542,4124.4,4124.3,2.02189648]
[1759110328364,0.5393,4124.4,4124.3,2.02189648]
[1759110328564,0.3137,4124.4,4124.3,2.02189648]
[1759110330268,0.33344475,4124.7,4124.6,0.43621]
[1759110330468,0.33344475,4124.7,4124.6,2.02189648]
[1759110330671,0.76334475,4124.7,4124.6,2.02189648]
[1759110331065,0.76334475,4124.7,4124.6,1.70249648]
[1759110331272,0.76334475,4124.7,4124.6,1.47899648]
[1759110331466,0.99942,4124.5,4124.4,0.245]
[1759110331771,0.7602,4124.1,4124.0,1.77689648]
[1759110332075,0.7602,4124.1,4124.0,2.02189648]
[1759110332262,0.7602,4124.1,4124.0,1.34147929]
[1759110332462,1.32977,4124.0,4123.9,0.00200592]
[1759110332661,1.32977,4124.0,4123.9,0.22070592]
[1759110333472,1.32977,4124.0,4123.9,0.87978521]
[1759110334275,1.32977,4124.0,4123.9,1.64138521]
[1759110336879,3.5381,4124.2,4124.1,0.4422]
[1759110337074,3.7521,4124.2,4124.1,1.0066]
[1759110337270,0.3473,4124.0,4123.9,0.87978521]
[1759110337472,0.8935,4124.0,4123.9,1.12478521]
[1759110337671,0.8935,4124.0,4123.9,1.34348521]
[1759110338070,0.3303,4124.0,4123.9,1.88638521]
[1759110338277,0.3303,4124.1,4124.0,1.19787]
[1759110341981,3.5381,4124.2,4124.0,0.87847]
[1759110342184,3.7521,4124.2,4124.1,0.7616]
[1759110343178,3.7521,4124.2,4123.9,1.12478521]
[1759110343179,0.3473,4124.0,4123.9,0.46570592]
[1759110343373,0.8935,4124.0,4123.9,1.66288521]
[1759110344785,0.8935,4124.0,4123.9,1.34348521]
[1759110345384,0.8935,4124.0,4123.9,0.22070592]
[1759110345579,0.8935,4124.0,4123.9,0.87978521]
[1759110346088,0.8935,4124.0,4123.9,1.09848521]
[1759110347485,0.8935,4124.0,4123.9,1.64138521]
[1759110348388,0.8935,4124.0,4123.9,1.32198521]
[1759110348592,0.8935,4124.0,4123.9,1.64138521]
[1759110348779,0.7602,4124.0,4123.9,1.64138521]
[1759110348979,0.8935,4124.0,4123.9,1.64138521]
[1759110352097,0.8935,4124.0,4123.9,1.32198521]
[1759110352398,1.32977,4124.0,4123.9,0.87978521]
[1759110353094,0.8935,4124.0,4123.9,1.09848521]
[1759110353594,0.8935,4124.0,4123.9,1.64138521]
[1759110353899,0.893,4124.0,4123.9,1.64138521]
[1759110354898,0.893,4124.0,4123.9,2.07766521]
[1759110356201,1.32927,4124.0,4123.9,0.00200592]
[1759110356400,1.32927,4124.0,4123.9,0.87978521]
[1759110357807,1.57427,4124.0,4123.9,0.87978521]
[1759110358099,7.0763585,4124.0,4123.9,0.00200592]
[1759110359792,2.0763585,4124.0,4123.9,0.00200592]
[1759110360491,2.0763585,4124.0,4123.9,0.20990592]
[1759110361303,1.3950885,4124.0,4123.9,0.73230592]
[1759110361690,1.3950885,4124.0,4123.9,0.20990592]
[1759110361894,1.3950885,4124.0,4123.9,0.00200592]
[1759110362306,1.3950885,4124.0,4123.9,0.73230592]
[1759110362907,1.3950885,4124.0,4123.9,0.00200592]
[1759110363399,0.3076,4124.0,4123.9,0.73230592]
[1759110363702,0.5337,4124.0,4123.9,0.73230592]
[1759110364907,3.5154,4124.2,4124.1,0.4131]
[1759110365104,3.5154,4124.2,4124.1,1.60807929]
[1759110365504,3.9505,4124.2,4124.1,1.60807929]
[1759110365708,3.9505,4124.2,4124.1,1.29087929]
[1759110366109,3.9505,4124.2,4124.1,1.08567929]
[1759110367103,3.9505,4124.2,4124.1,1.60807929]
[1759110367799,3.9505,4124.2,4124.1,0.87777929]
[1759110367999,3.9505,4124.2,4124.1,1.08567929]
[1759110368405,3.9505,4124.2,4124.1,1.40287929]
[1759110368806,3.9505,4124.2,4124.1,1.60807929]
[1759110369004,3.7415,4124.2,4124.1,1.60807929]
[1759110370306,3.43704475,4124.7,4124.6,0.4131]
[1759110370915,3.74464475,4124.7,4124.6,0.7303]
[1759110372503,0.665,4124.5,4124.4,1.34087929]
[1759110372704,0.8848,4124.5,4124.4,1.87397929]
[1759110373212,0.8848,4124.5,4124.4,2.75175858]
[1759110373511,0.757,4124.5,4124.4,2.75175858]
[1759110373702,0.5372,4124.5,4124.4,2.75175858]
[1759110374103,0.8848,4124.5,4124.4,2.75175858]
[1759110375415,0.5372,4124.5,4124.4,2.75175858]
[1759110377117,0.5372,4124.5,4124.4,2.75075858]
[1759110377312,0.8848,4124.5,4124.4,0.87777929]
[1759110377615,0.8848,4124.5,4124.4,1.12177929]
[1759110377817,0.8848,4124.5,4124.4,1.33987929]
[1759110378019,0.8848,4124.5,4124.4,2.75075858]
[1759110378020,0.5372,4124.5,4124.4,2.75075858]
[1759110378313,0.757,4124.5,4124.4,2.75075858]
[1759110378520,0.8848,4124.5,4124.4,2.75075858]
[1759110379029,0.8848,4124.5,4124.4,2.75175858]
[1759110380915,0.8848,4124.5,4124.4,2.44405858]
[1759110381109,0.8848,4124.5,4124.4,2.75175858]
[1759110382014,0.8848,4124.5,4124.4,1.87397929]
[1759110383027,0.8848,4124.0,4123.9,3.20980592]
[1759110383218,0.8848,4124.0,4123.9,4.33158521]
[1759110384118,0.8848,4124.0,4123.9,4.54968521]
[1759110385722,0.8848,4124.0,4123.9,4.30568521]
[1759110386122,0.8848,4124.0,4123.9,0.87978521]
[1759110386518,5.8848,4124.0,4123.9,0.87978521]
[1759110387430,6.38722712,4124.0,4123.9,0.87978521]
[1759110388315,6.63222712,4124.0,4123.9,0.87978521]
[1759110388515,6.63222712,4124.0,4123.9,0.00200592]
[1759110389124,7.29012712,4124.0,4123.5,0.87777929]
[1759110389327,1.20414,4123.3,4123.2,0.87777929]
[1759110390119,1.20414,4123.3,4123.2,0.87963273]
[1759110390319,1.44914,4123.3,4123.2,0.00185344]
[1759110392322,1.44914,4123.3,4123.2,1.01814077]
[1759110394429,1.44914,4123.3,4123.2,0.00185344]
[1759110395118,0.43634,4123.3,4123.2,0.73895344]
[1759110395324,0.99472,4123.5,4123.4,0.7371]
[1759110395521,0.5584,4123.5,4123.4,1.75338733]
[1759110395827,1.20408,4123.9,4123.8,0.7371]
[1759110396023,1.20408,4123.9,4123.8,1.75338733]
[1759110398234,1.20408,4123.9,4123.8,1.44388733]
[1759110398638,1.20408,4123.9,4123.8,1.01628733]
[1759110399731,0.4296,4123.9,4123.5,1.01628733]
[1759110399935,0.7678,4123.4,4123.3,1.01628733]
[1759110400237,0.7678,4123.4,4123.3,1.23238733]
[1759110400737,1.20414,4123.3,4123.2,0.00185344]
[1759110400929,1.20414,4123.3,4123.2,1.23424077]
[1759110402630,1.20414,4123.3,4123.2,1.75524077]
[1759110403030,1.21849,4124.0,4123.3,0.3095]
[1759110403329,1.51506629,4123.9,4123.8,1.23238733]
[1759110403527,1.95134629,4123.9,4123.8,1.23238733]
[1759110403736,1.70634629,4123.9,4123.8,1.23238733]
[1759110404732,0.99468,4123.9,4123.8,1.75338733]
[1759110405526,1.52031,4123.9,4123.2,0.00185344]
[1759110405836,0.7678,4123.3,4123.2,0.73895344]
[1759110406024,0.1255,4123.5,4123.2,0.73895344]
[1759110406229,1.2041,4123.8,4123.7,0.7371]
[1759110406833,1.2041,4123.8,4123.7,1.75338733]
[1759110408638,1.2041,4123.8,4123.7,1.01628733]
[1759110408837,1.20413,4123.4,4123.3,0.7371]
[1759110409038,1.20413,4123.4,4123.3,1.44388733]
[1759110410333,1.20413,4123.4,4123.3,1.75338733]
[1759110411339,1.20413,4123.4,4123.3,1.44388733]
[1759110412735,1.707438,4123.4,4123.2,0.00185344]
[1759110412947,1.20413,4123.4,4123.2,0.00185344]
[1759110413634,0.71822355,4123.3,4123.2,0.00185344]
[1759110413832,1.24342355,4123.3,4123.2,0.00185344]
[1759110420743,0.8665,4122.0,4121.9,0.5516]
[1759110420949,0.5331,4122.0,4121.9,1.77308733]
[1759110421251,0.3183,4122.0,4121.9,1.77308733]
[1759110421449,4.51073,4122.5,4122.4,0.2229]
[1759110421742,4.0743,4122.5,4122.4,1.77490579]
[1759110421944,3.7409,4122.5,4122.4,1.77490579]
[1759110422244,3.7409,4123.0,4122.9,0.7568]
[1759110422545,3.9478,4123.0,4122.9,1.77308733]
[1759110422746,4.0743,4123.0,4122.9,1.77308733]
[1759110423348,4.0743,4123.0,4122.9,1.44438733]
[1759110426152,4.0743,4123.0,4122.9,1.01628733]
[1759110426848,4.0743,4123.0,4122.4,0.00181846]
[1759110427057,0.8665,4122.5,4122.4,0.00181846]
[1759110427356,1.30293,4122.5,4122.4,0.00181846]
[1759110428552,1.30293,4122.5,4122.4,0.22471846]
[1759110430750,0.8665,4122.5,4122.4,0.42991846]
[1759110430954,0.8665,4122.5,4122.4,0.75861846]
[1759110431258,0.8665,4122.5,4122.4,0.22471846]
[1759110432056,0.8665,4122.5,4122.4,0.00181846]
[1759110433051,4.0743,4122.5,4122.4,0.00181846]
[1759110433256,9.5773472,4122.5,4122.4,0.00181846]
[1759110436758,9.8223472,4122.5,4122.4,0.00181846]
[1759110444560,10.2587772,4122.5,4122.4,0.00181846]
[1759110444955,10.0137772,4122.5,4122.4,0.00181846]
[1759110445153,5.2587772,4122.5,4122.4,0.00181846]
[1759110445353,5.2587772,4122.5,4122.4,0.22041846]
[1759110446262,5.2587772,4122.5,4122.4,0.00181846]
[1759110457060,5.2587772,4122.5,4122.4,6.65182589]
[1759110457061,3.7108472,4122.5,4122.4,6.65182589]
[1759110457260,3.02513673,4122.5,4122.4,6.65182589]
[1759110459471,3.02513673,4122.5,4122.4,1.65182589]
[1759110460171,3.34003673,4122.5,4122.4,1.65182589]
[1759110460864,3.02513673,4122.5,4122.4,1.65182589]
[1759110461066,0.3149,4123.2,4123.1,0.7712]
[1759110461270,3.12586232,4123.2,4123.1,1.31330743]
[1759110461465,0.3149,4123.7,4123.6,0.4345]
[1759110461466,3.2078,4123.7,4123.6,0.4345]
[1759110461666,3.4277,4124.2,4124.1,0.7712]
[1759110461876,4.46030019,4124.2,4124.1,0.7712]
[1759110462374,3.9563,4124.2,4124.1,0.7712]
[1759110464164,3.9563,4124.2,4124.1,0.4345]
[1759110465077,0.4336,4123.6,4123.1,3.5445]
[1759110465373,0.7485,4123.2,4123.1,3.6423]
[1759110465577,0.7485,4123.2,4123.1,3.979]
[1759110465774,0.7485,4123.2,4123.1,0.4345]
[1759110466078,0.7485,4123.2,4123.1,0.2186]
[1759110466476,0.7485,4123.2,4123.1,1.09740743]
[1759110466779,0.7485,4123.2,4123.1,0.2186]
[1759110467474,0.1302,4123.5,4123.0,0.87880743]
[1759110467475,0.65627,4123.1,4123.0,0.87880743]
[1759110467772,0.7485,4123.1,4123.0,1.31330743]
[1759110467975,0.7485,4123.1,4123.0,1.65000743]
[1759110468771,0.7485,4123.1,4123.0,1.31330743]
[1759110469075,0.43636,4123.2,4122.6,3.6423]
[1759110469076,1.18491,4122.7,4122.6,3.6423]
[1759110469267,1.31513,4122.5,4122.4,0.22041846]
[1759110470378,1.31513,4122.5,4122.4,1.09922589]
[1759110470975,0.5348,4122.5,4122.4,1.65182589]
[1759110471282,0.43642,4122.6,4122.4,1.31512589]
[1759110471476,0.97122,4122.6,4122.5,0.7712]
[1759110471982,0.3149,4122.8,4122.5,0.4345]
[1759110472284,0.5348,4122.8,4122.7,1.65000743]
[1759110472673,0.7485,4122.8,4122.7,1.65000743]
[1759110473684,1.31513,4122.5,4122.4,0.00181846]
[1759110473876,4.76793,4122.5,4122.4,0.00181846]
[1759110475176,0.7623,4121.9,4121.1,3.2078]
[1759110475377,1.19885,4121.4,4121.3,0.2217]
[1759110475578,1.19885,4121.4,4121.3,1.10050743]
[1759110476284,1.20058841,4121.4,4121.3,0.4304761]
[1759110476478,0.76403841,4121.4,4121.3,0.7414761]
[1759110477486,0.76403841,4121.4,4121.3,0.4304761]
[1759110477787,0.76403841,4121.4,4121.3,0.2234761]
[1759110478083,0.76403841,4121.4,4121.3,0.0017761]
[1759110478683,3.97183841,4121.4,4121.3,0.0017761]
[1759110479076,3.97183841,4121.4,4121.3,0.2234761]
[1759110479275,3.97183841,4121.4,4121.3,0.0017761]
[1759110482689,3.97183841,4121.4,4121.3,0.2234761]
[1759110482987,4.21683841,4121.4,4121.3,0.2234761]
[1759110483187,4.21683841,4121.4,4121.3,0.0017761]
[1759110485078,3.97183841,4121.4,4121.3,0.0017761]
[1759110485285,4.21683841,4121.4,4121.3,0.0017761]
[1759110488285,3.97183841,4121.4,4121.3,0.0017761]
[1759110488588,4.21683841,4121.4,4121.3,0.0017761]
[1759110495491,4.21683841,4121.4,4120.3,0.4448]
[1759110495492,0.7541,4120.4,4120.3,0.4448]
[1759110495692,1.19075,4120.4,4120.3,0.4448]
[1759110495890,1.19075,4120.4,4120.3,3.78294767]
[1759110496296,1.19075,4120.4,4120.3,1.62990854]
[1759110496489,1.19075,4120.4,4120.3,1.10763928]
[1759110496994,1.19075,4120.4,4120.3,0.22823074]
[1759110497197,1.19075,4120.4,4120.3,1.10763928]
[1759110498799,1.19075,4120.4,4120.3,0.75273074]
[1759110499997,0.53,4120.4,4120.3,0.75273074]
[1759110500199,0.43664,4120.5,4120.4,0.7505]
[1759110500598,3.64443,4120.6,4120.4,0.4448]
[1759110500800,3.96003,4120.6,4120.5,1.62990854]
[1759110500999,4.39853,4120.6,4120.5,1.62990854]
[1759110503702,3.9619,4120.6,4120.5,1.62990854]
[1759110503904,3.7378,4120.6,4120.5,1.62990854]
[1759110504592,3.2078,4120.6,4120.5,6.74390854]
[1759110504796,0.4366,4120.9,4120.8,0.4349]
[1759110505000,0.3282,4120.9,4120.8,1.64580854]
[1759110505801,0.3282,4121.0,4120.8,1.75091854]
[1759110506005,0.5434,4121.0,4120.9,0.7664]
[1759110506305,0.8784,4121.0,4120.9,0.7664]
[1759110507207,0.8784,4121.0,4120.9,0.4349]
[1759110507900,0.8784,4121.0,4120.9,0.7664]
[1759110508101,0.8784,4121.0,4120.5,3.3218]
[1759110508102,0.2152,4120.6,4120.5,3.2078]
[1759110508305,0.7511,4120.6,4120.5,4.85360854]
[1759110508606,0.5434,4120.9,4120.8,0.4349]
[1759110508806,0.5434,4120.9,4120.8,1.64580854]
[1759110509498,0.3282,4120.9,4120.8,1.64580854]
[1759110509703,3.536,4121.1,4121.0,0.7664]
[1759110510206,3.7512,4121.1,4121.0,0.7664]